lending/lending_fUSD_20250210
["ID","MTS","AMOUNT","RATE_DAILY","PERIOD"]
[352631653,1739209839932,-597.7,0.00010958,2]
[352631654,1739209839942,-225.76848438,0.00010958,2]
[352631655,1739209839951,-500.0,0.00010958,2]
[352631656,1739209839960,-500.0,0.00010958,2]
[352631657,1739209839970,-797.16,0.00010958,2]
[352631658,1739209839980,-500.0,0.00010958,2]
[352631659,1739209839989,-500.0,0.00010958,2]
[352631660,1739209839999,-500.0,0.00010958,2]
[352631661,1739209840008,-529.94,0.00010958,2]
[352631672,1739209840131,-500.0,0.00010958,2]
[352631674,1739209840140,-500.0,0.00010958,2]
[352631676,1739209840150,-500.0,0.00010958,2]
[352631678,1739209840160,-508.09,0.00010958,2]
[352631680,1739209840169,-586.1,0.00010958,2]
[352631682,1739209840178,-500.0,0.00010958,2]
[352631684,1739209840188,-500.0,0.00010958,2]
[352631686,1739209840198,-914.1,0.00010958,2]
[352631688,1739209840207,-500.0,0.00010958,2]
[352631690,1739209840216,-539.94,0.00010958,2]
[352631692,1739209840225,-692.68,0.00010958,2]
[352631694,1739209840238,-500.0,0.00010958,2]
[352631696,1739209840248,-500.0,0.00010958,2]
[352631698,1739209840257,-500.0,0.00010958,2]
[352631700,1739209840266,-500.0,0.00010958,2]
[352631702,1739209840277,-500.0,0.00010958,2]
[352631704,1739209840287,-500.0,0.00010958,2]
[352631706,1739209840297,-500.0,0.00010958,2]
[352631708,1739209840306,-500.0,0.00010958,2]
[352631710,1739209840316,-500.0,0.00010958,2]
[352631712,1739209840327,-798.08,0.00010958,2]
[352631714,1739209840337,-501.9,0.00010958,2]
[352631716,1739209840346,-500.0,0.00010958,2]
[352631718,1739209840355,-1199.63,0.00010958,2]
[352631720,1739209840365,-500.0,0.00010958,2]
[352631722,1739209840374,-500.0,0.00010958,2]
[352631724,1739209840383,-558.69,0.00010958,2]
[352631726,1739209840393,-500.0,0.00010958,2]
[352631728,1739209840402,-500.0,0.00010958,2]
[352631730,1739209840412,-500.0,0.00010958,2]
[352631732,1739209840421,-500.0,0.00010958,2]
[352631734,1739209840431,-500.0,0.00010958,2]
[352631736,1739209840440,-500.0,0.00010958,2]
[352631738,1739209840451,-570.46,0.00010958,2]
[352631740,1739209840460,-500.0,0.00010958,2]
[352631742,1739209840469,-626.42,0.00010958,2]
[352631744,1739209840479,-500.0,0.00010958,2]
[352631746,1739209840489,-500.0,0.00010958,2]
[352631748,1739209840499,-500.0,0.00010958,2]
[352631750,1739209840508,-500.0,0.00010958,2]
[352631752,1739209840517,-500.0,0.00010958,2]
[352631754,1739209840528,-500.0,0.00010958,2]
[352631756,1739209840537,-500.0,0.00010958,2]
[352631758,1739209840546,-708.6,0.00010958,2]
[352631760,1739209840555,-500.0,0.00010958,2]
[352631762,1739209840564,-500.0,0.00010958,2]
[352631764,1739209840573,-500.0,0.00010958,2]
[352631766,1739209840582,-500.0,0.00010958,2]
[352631768,1739209840591,-1296.19,0.00010958,2]
[352631770,1739209840601,-500.0,0.00010958,2]
[352631772,1739209840611,-500.0,0.00010958,2]
[352631774,1739209840620,-500.0,0.00010958,2]
[352631776,1739209840630,-500.0,0.00010958,2]
[352631778,1739209840639,-500.0,0.00010958,2]
[352631780,1739209840648,-500.0,0.00010958,2]
[352631782,1739209840658,-500.0,0.00010958,2]
[352631784,1739209840667,-500.0,0.00010958,2]
[352631786,1739209840676,-728.29,0.00010958,2]
[352631788,1739209840685,-500.0,0.00010958,2]
[352631790,1739209840694,-500.0,0.00010958,2]
[352631792,1739209840703,-500.0,0.00010958,2]
[352631794,1739209840712,-500.0,0.00010958,2]
[352631796,1739209840721,-500.0,0.00010958,2]
[352631798,1739209840730,-500.0,0.00010958,2]
[352631800,1739209840739,-500.0,0.00010958,2]
[352631802,1739209840748,-913.3,0.00010958,2]
[352631804,1739209840757,-732.39,0.00010958,2]
[352631806,1739209840766,-570.24,0.00010958,2]
[352631808,1739209840775,-500.0,0.00010958,2]
[352631810,1739209840785,-370.74565006,0.00010958,2]
[352631812,1739209840794,-500.0,0.00010958,2]
[352631814,1739209840803,-500.0,0.00010958,2]
[352631816,1739209840812,-156.273019,0.00010958,2]
[352631818,1739209840823,-500.0,0.00010958,2]
[352631820,1739209840832,-500.0,0.00010958,2]
[352631822,1739209840841,-500.0,0.00010958,2]
[352631824,1739209840851,-500.0,0.00010958,2]
[352631826,1739209840860,-500.0,0.00010958,2]
[352631828,1739209840869,-500.0,0.00010958,2]
[352631830,1739209840878,-500.0,0.00010958,2]
[352631832,1739209840888,-500.0,0.00010958,2]
[352631834,1739209840897,-500.0,0.00010958,2]
[352631836,1739209840906,-500.0,0.00010958,2]
[352631838,1739209840915,-173.51423332,0.00010958,2]
[352631840,1739209840924,-500.0,0.00010958,2]
[352631841,1739209840933,-500.0,0.00010958,2]
[352631843,1739209840943,-500.0,0.00010958,2]
[352631845,1739209840953,-500.0,0.00010958,2]
[352631847,1739209840963,-500.0,0.00010958,2]
[352631850,1739209840972,-500.0,0.00010958,2]
[352631852,1739209840981,-500.0,0.00010958,2]
[352631854,1739209840991,-606.81,0.00010958,2]
[352631856,1739209841001,-500.0,0.00010958,2]
[352631857,1739209841010,-899.13,0.00010958,2]
[352631859,1739209841019,-500.0,0.00010958,2]
[352631861,1739209841029,-500.0,0.00010958,2]
[352631863,1739209841038,-500.0,0.00010958,2]
[352631865,1739209841047,-500.0,0.00010958,2]
[352631867,1739209841058,-500.0,0.00010958,2]
[352631870,1739209841069,-500.0,0.00010958,2]
[352631872,1739209841079,-500.0,0.00010958,2]
[352631874,1739209841089,-500.0,0.00010958,2]
[352631876,1739209841099,-500.0,0.00010958,2]
[352631878,1739209841108,-527.16,0.00010958,2]
[352631880,1739209841118,-500.0,0.00010958,2]
[352631882,1739209841128,-500.0,0.00010958,2]
[352631884,1739209841138,-500.0,0.00010958,2]
[352631885,1739209841148,-500.0,0.00010958,2]
[352631887,1739209841158,-500.0,0.00010958,2]
[352631890,1739209841169,-335.78620468,0.00010958,2]
[352631892,1739209841178,-500.0,0.00010958,2]
[352631893,1739209841187,-500.0,0.00010958,2]
[352631895,1739209841196,-500.0,0.00010958,2]
[352631897,1739209841206,-500.0,0.00010958,2]
[352631899,1739209841215,-500.0,0.00010958,2]
[352631901,1739209841225,-500.0,0.00010958,2]
[352631903,1739209841239,-797.43,0.00010958,2]
[352631906,1739209841249,-551.74,0.00010958,2]
[352631908,1739209841258,-500.0,0.00010958,2]
[352631910,1739209841267,-501.78357424,0.00010958,2]
[352631911,1739209841278,-500.0,0.00010958,2]
[352631913,1739209841287,-500.0,0.00010958,2]
[352631915,1739209841296,-500.0,0.00010958,2]
[352631917,1739209841306,-500.0,0.00010958,2]
[352631919,1739209841317,-500.0,0.00010958,2]
[352631921,1739209841329,-500.0,0.00010958,2]
[352631923,1739209841338,-721.18,0.00010958,2]
[352631925,1739209841348,-500.0,0.00010958,2]
[352631927,1739209841358,-500.0,0.00010958,2]
[352631929,1739209841367,-150.18594,0.00010958,2]
[352631931,1739209841376,-543.56,0.00010958,2]
[352631933,1739209841385,-500.0,0.00010958,2]
[352631935,1739209841395,-500.0,0.00010958,2]
[352631937,1739209841405,-500.0,0.00010958,2]
[352631939,1739209841414,-500.0,0.00010958,2]
[352631941,1739209841424,-896.72,0.00010958,2]
[352631943,1739209841434,-500.0,0.00010958,2]
[352631945,1739209841443,-840.36,0.00010958,2]
[352631947,1739209841452,-156.660417,0.00010958,2]
[352631949,1739209841462,-500.0,0.00010958,2]
[352631951,1739209841471,-500.0,0.00010958,2]
[352631953,1739209841480,-500.0,0.00010958,2]
[352631955,1739209841490,-500.0,0.00010958,2]
[352631957,1739209841499,-500.0,0.00010958,2]
[352631959,1739209841508,-500.0,0.00010958,2]
[352631961,1739209841517,-500.0,0.00010958,2]
[352631963,1739209841527,-500.0,0.00010958,2]
[352631964,1739209841536,-500.0,0.00010958,2]
[352631965,1739209841545,-500.0,0.00010958,2]
[352631966,1739209841555,-500.0,0.00010958,2]
[352631967,1739209841564,-157.072737,0.00010958,2]
[352631968,1739209841575,-500.0,0.00010958,2]
[352631969,1739209841585,-500.0,0.00010958,2]
[352631970,1739209841594,-500.0,0.00010958,2]
[352631971,1739209841604,-500.0,0.00010958,2]
[352631973,1739209841614,-516.13,0.00010958,2]
[352631975,1739209841623,-500.0,0.00010958,2]
[352631976,1739209841632,-500.0,0.00010958,2]
[352631978,1739209841641,-500.0,0.00010958,2]
[352631980,1739209841650,-500.0,0.00010958,2]
[352631982,1739209841658,-500.0,0.00010958,2]
[352631984,1739209841668,-500.0,0.00010958,2]
[352631986,1739209841676,-903.89,0.00010958,2]
[352631988,1739209841685,-500.0,0.00010958,2]
[352631990,1739209841695,-500.0,0.00010958,2]
[352631992,1739209841703,-500.0,0.00010958,2]
[352631994,1739209841713,-500.0,0.00010958,2]
[352631996,1739209841721,-500.0,0.00010958,2]
[352631998,1739209841730,-1094.7,0.00010958,2]
[352632000,1739209841739,-500.0,0.00010958,2]
[352632002,1739209841748,-500.0,0.00010958,2]
[352632004,1739209841757,-500.0,0.00010958,2]
[352632017,1739209841866,-500.0,0.00010958,2]
[352632019,1739209841875,-500.0,0.00010958,2]
[352632021,1739209841884,-500.0,0.00010958,2]
[352632023,1739209841893,-500.0,0.00010958,2]
[352632025,1739209841902,-572.00391826,0.00010958,2]
[352632027,1739209841911,-500.0,0.00010958,2]
[352632029,1739209841920,-500.0,0.00010958,2]
[352632031,1739209841929,-500.0,0.00010958,2]
[352632033,1739209841938,-614.76,0.00010958,2]
[352632034,1739209841947,-500.0,0.00010958,2]
[352632037,1739209841956,-500.0,0.00010958,2]
[352632039,1739209841965,-500.0,0.00010958,2]
[352632041,1739209841974,-744.55,0.00010958,2]
[352632043,1739209841983,-500.0,0.00010958,2]
[352632045,1739209841992,-500.0,0.00010958,2]
[352632046,1739209842001,-500.0,0.00010958,2]
[352632049,1739209842009,-500.0,0.00010958,2]
[352632051,1739209842020,-500.0,0.00010958,2]
[352632053,1739209842029,-881.75,0.00010958,2]
[352632055,1739209842039,-500.0,0.00010958,2]
[352632057,1739209842048,-500.0,0.00010958,2]
[352632059,1739209842057,-539.03,0.00010958,2]
[352632061,1739209842067,-158.14684259,0.00010958,2]
[352632063,1739209842076,-616.27,0.00010958,2]
[352632065,1739209842085,-500.0,0.00010958,2]
[352632066,1739209842094,-844.08,0.00010958,2]
[352632068,1739209842104,-500.0,0.00010958,2]
[352632070,1739209842113,-408.03278891,0.00010958,2]
[352632072,1739209842123,-500.0,0.00010958,2]
[352632075,1739209842132,-500.0,0.00010958,2]
[352632077,1739209842142,-500.0,0.00010958,2]
[352632078,1739209842151,-500.0,0.00010958,2]
[352632080,1739209842161,-500.0,0.00010958,2]
[352632083,1739209842171,-500.0,0.00010958,2]
[352632084,1739209842180,-500.0,0.00010958,2]
[352632086,1739209842189,-500.0,0.00010958,2]
[352632088,1739209842198,-500.0,0.00010958,2]
[352632091,1739209842208,-500.0,0.00010958,2]
[352632092,1739209842217,-500.0,0.00010958,2]
[352632094,1739209842226,-500.0,0.00010958,2]
[352632096,1739209842238,-500.0,0.00010958,2]
[352632098,1739209842247,-500.0,0.00010958,2]
[352632100,1739209842256,-500.0,0.00010958,2]
[352632102,1739209842266,-500.0,0.00010958,2]
[352632104,1739209842275,-1120.91,0.00010958,2]
[352632106,1739209842284,-500.0,0.00010958,2]
[352632108,1739209842295,-500.0,0.00010958,2]
[352632110,1739209842304,-581.57,0.00010958,2]
[352632112,1739209842315,-500.0,0.00010958,2]
[352632114,1739209842326,-500.0,0.00010958,2]
[352632116,1739209842335,-1035.79,0.00010958,2]
[352632118,1739209842345,-1098.42,0.00010958,2]
[352632120,1739209842354,-500.0,0.00010958,2]
[352632122,1739209842363,-500.0,0.00010958,2]
[352632124,1739209842372,-585.8,0.00010958,2]
[352632126,1739209842381,-500.0,0.00010958,2]
[352632128,1739209842391,-500.0,0.00010958,2]
[352632130,1739209842400,-500.0,0.00010958,2]
[352632132,1739209842410,-343.46940701,0.00010958,2]
[352632134,1739209842419,-500.0,0.00010958,2]
[352632136,1739209842428,-1301.71,0.00010958,2]
[352632138,1739209842437,-500.0,0.00010958,2]
[352632140,1739209842447,-582.41,0.00010958,2]
[352632142,1739209842456,-500.0,0.00010958,2]
[352632144,1739209842466,-500.0,0.00010958,2]
[352632147,1739209842475,-500.0,0.00010958,2]
[352632149,1739209842484,-500.0,0.00010958,2]
[352632151,1739209842493,-500.0,0.00010958,2]
[352632152,1739209842502,-500.0,0.00010958,2]
[352632154,1739209842511,-500.0,0.00010958,2]
[352632157,1739209842520,-500.0,0.00010958,2]
[352632159,1739209842529,-500.0,0.00010958,2]
[352632160,1739209842539,-500.0,0.00010958,2]
[352632162,1739209842548,-500.0,0.00010958,2]
[352632164,1739209842557,-500.0,0.00010958,2]
[352632166,1739209842566,-500.0,0.00010958,2]
[352632168,1739209842574,-500.0,0.00010958,2]
[352632170,1739209842584,-631.5,0.00010958,2]
[352632173,1739209842594,-860.52,0.00010958,2]
[352632175,1739209842604,-944.27,0.00010958,2]
[352632177,1739209842613,-863.91,0.00010958,2]
[352632179,1739209842622,-500.0,0.00010958,2]
[352632181,1739209842631,-500.0,0.00010958,2]
[352632182,1739209842640,-500.0,0.00010958,2]
[352632184,1739209842650,-1095.28,0.00010958,2]
[352632186,1739209842659,-500.0,0.00010958,2]
[352632188,1739209842668,-755.87,0.00010958,2]
[352632190,1739209842678,-500.0,0.00010958,2]
[352632192,1739209842687,-815.98,0.00010958,2]
[352632194,1739209842696,-500.0,0.00010958,2]
[352632196,1739209842706,-500.0,0.00010958,2]
[352632198,1739209842715,-659.36,0.00010958,2]
[352632200,1739209842724,-500.0,0.00010958,2]
[352632202,1739209842733,-500.0,0.00010958,2]
[352632204,1739209842743,-1204.63,0.00010958,2]
[352632206,1739209842752,-500.0,0.00010958,2]
[352632209,1739209842762,-500.0,0.00010958,2]
[352632212,1739209842771,-534.64,0.00010958,2]
[352632215,1739209842781,-500.0,0.00010958,2]
[352632218,1739209842791,-2442.78,0.00010958,2]
[352632221,1739209842800,-500.0,0.00010958,2]
[352632222,1739209842810,-651.43,0.00010958,2]
[352632224,1739209842819,-500.0,0.00010958,2]
[352632226,1739209842829,-678.69,0.00010958,2]
[352632229,1739209842838,-500.0,0.00010958,2]
[352632233,1739209842848,-500.0,0.00010958,2]
[352632238,1739209842857,-1112.42,0.00010958,2]
[352632242,1739209842866,-500.0,0.00010958,2]
[352632245,1739209842876,-500.0,0.00010958,2]
[352632249,1739209842886,-425.29279023,0.00010958,2]
[352632253,1739209842895,-500.0,0.00010958,2]
[352632257,1739209842904,-607.08,0.00010958,2]
[352632261,1739209842913,-1343.72,0.00010958,2]
[352632265,1739209842922,-648.86,0.00010958,2]
[352632268,1739209842932,-500.0,0.00010958,2]
[352632270,1739209842942,-500.0,0.00010958,2]
[352632272,1739209842951,-500.0,0.00010958,2]
[352632274,1739209842960,-690.56,0.00010958,2]
[352632276,1739209842968,-1047.81,0.00010958,2]
[352632277,1739209842977,-500.0,0.00010958,2]
[352632279,1739209842986,-500.0,0.00010958,2]
[352632281,1739209842996,-500.0,0.00010958,2]
[352632283,1739209843005,-500.0,0.00010958,2]
[352632285,1739209843014,-506.99388159,0.00010958,2]
[352632287,1739209843023,-500.0,0.00010958,2]
[352632289,1739209843032,-811.15,0.00010958,2]
[352632291,1739209843041,-500.0,0.00010958,2]
[352632293,1739209843050,-500.0,0.00010958,2]
[352632295,1739209843060,-500.0,0.00010958,2]
[352632297,1739209843069,-500.0,0.00010958,2]
[352632299,1739209843079,-577.87,0.00010958,2]
[352632301,1739209843089,-637.95,0.00010958,2]
[352632303,1739209843098,-2226.83,0.00010958,2]
[352632305,1739209843107,-3021.37,0.00010958,2]
[352632307,1739209843116,-5163.05,0.00010958,2]
[352632309,1739209843126,-500.0,0.00010958,2]
[352632311,1739209843136,-500.0,0.00010958,2]
[352632313,1739209843145,-984.66,0.00010958,2]
[352632315,1739209843154,-1327.36,0.00010958,2]
[352632317,1739209843163,-575.56,0.00010958,2]
[352632319,1739209843173,-500.0,0.00010958,2]
[352632321,1739209843182,-500.0,0.00010958,2]
[352632323,1739209843191,-1441.41,0.00010958,2]
[352632325,1739209843201,-500.0,0.00010958,2]
[352632327,1739209843210,-1305.23,0.00010958,2]
[352632329,1739209843219,-872.7,0.00010958,2]
[352632331,1739209843229,-500.0,0.00010958,2]
[352632333,1739209843242,-500.0,0.00010958,2]
[352632335,1739209843251,-500.0,0.00010958,2]
[352632337,1739209843260,-500.0,0.00010958,2]
[352632339,1739209843269,-1967.25,0.00010958,2]
[352632341,1739209843281,-500.0,0.00010958,2]
[352632343,1739209843291,-500.0,0.00010958,2]
[352632345,1739209843300,-500.0,0.00010958,2]
[352632347,1739209843310,-1241.59,0.00010958,2]
[352632349,1739209843321,-500.0,0.00010958,2]
[352632351,1739209843333,-2021.02,0.00010958,2]
[352632353,1739209843342,-500.0,0.00010958,2]
[352632365,1739209843439,-500.0,0.00010958,2]
[352632368,1739209843459,-1098.65,0.00010958,2]
[352632370,1739209843469,-500.0,0.00010958,2]
[352632372,1739209843480,-833.56,0.00010958,2]
[352632374,1739209843489,-1221.31,0.00010958,2]
[352632376,1739209843500,-500.0,0.00010958,2]
[352632378,1739209843509,-500.0,0.00010958,2]
[352632380,1739209843518,-500.0,0.00010958,2]
[352632382,1739209843528,-500.0,0.00010958,2]
[352632384,1739209843538,-500.0,0.00010958,2]
[352632386,1739209843547,-1696.94,0.00010958,2]
[352632388,1739209843556,-1730.9,0.00010958,2]
[352632390,1739209843565,-500.0,0.00010958,2]
[352632392,1739209843575,-1591.49,0.00010958,2]
[352632394,1739209843584,-3064.73,0.00010958,2]
[352632396,1739209843593,-365.18551087,0.00010958,2]
[352632398,1739209843602,-1385.89,0.00010958,2]
[352632399,1739209843611,-2180.79,0.00010958,2]
[352632401,1739209843621,-500.0,0.00010958,2]
[352632403,1739209843630,-500.0,0.00010958,2]
[352632406,1739209843641,-717.28,0.00010958,2]
[352632408,1739209843650,-502.7342233,0.00010958,2]
[352632409,1739209843659,-1415.25,0.00010958,2]
[352632411,1739209843668,-500.0,0.00010958,2]
[352632413,1739209843678,-500.0,0.00010958,2]
[352632414,1739209843687,-500.0,0.00010958,2]
[352632415,1739209843696,-1668.55,0.00010958,2]
[352632416,1739209843706,-1300.26,0.00010958,2]
[352632417,1739209843715,-150.185941,0.00010958,2]
[352632418,1739209843725,-500.0,0.00010958,2]
[352632419,1739209843734,-500.0,0.00010958,2]
[352632420,1739209843743,-892.32,0.00010958,2]
[352632421,1739209843752,-500.0,0.00010958,2]
[352632423,1739209843761,-1375.23,0.00010958,2]
[352632425,1739209843770,-500.0,0.00010958,2]
[352632427,1739209843779,-501.95419027,0.00010958,2]
[352632429,1739209843788,-500.0,0.00010958,2]
[352632431,1739209843797,-543.1,0.00010958,2]
[352632433,1739209843806,-500.0,0.00010958,2]
[352632435,1739209843816,-1240.07,0.00010958,2]
[352632437,1739209843825,-2281.09,0.00010958,2]
[352632439,1739209843835,-500.0,0.00010958,2]
[352632441,1739209843843,-500.0,0.00010958,2]
[352632443,1739209843852,-658.47,0.00010958,2]
[352632445,1739209843861,-602.52,0.00010958,2]
[352632447,1739209843871,-1735.58,0.00010958,2]
[352632449,1739209843880,-500.0,0.00010958,2]
[352632451,1739209843888,-2624.82,0.00010958,2]
[352632453,1739209843898,-156.660418,0.00010958,2]
[352632455,1739209843907,-500.0,0.00010958,2]
[352632457,1739209843916,-637.48,0.00010958,2]
[352632459,1739209843925,-1135.98,0.00010958,2]
[352632461,1739209843935,-2552.15,0.00010958,2]
[352632463,1739209843945,-500.0,0.00010958,2]
[352632465,1739209843954,-500.0,0.00010958,2]
[352632467,1739209843963,-1573.56,0.00010958,2]
[352632469,1739209843973,-500.0,0.00010958,2]
[352632471,1739209843981,-500.0,0.00010958,2]
[352632473,1739209843991,-500.0,0.00010958,2]
[352632475,1739209844000,-1718.93,0.00010958,2]
[352632477,1739209844010,-877.29,0.00010958,2]
[352632479,1739209844019,-2328.8,0.00010958,2]
[352632481,1739209844029,-500.0,0.00010958,2]
[352632483,1739209844038,-500.0,0.00010958,2]
[352632485,1739209844047,-500.0,0.00010958,2]
[352632487,1739209844058,-500.0,0.00010958,2]
[352632489,1739209844067,-500.0,0.00010958,2]
[352632491,1739209844077,-642.76,0.00010958,2]
[352632493,1739209844087,-2309.37,0.00010958,2]
[352632495,1739209844096,-1453.37,0.00010958,2]
[352632497,1739209844106,-500.0,0.00010958,2]
[352632499,1739209844115,-500.0,0.00010958,2]
[352632501,1739209844124,-500.0,0.00010958,2]
[352632503,1739209844133,-965.91,0.00010958,2]
[352632505,1739209844142,-505.87,0.00010958,2]
[352632507,1739209844152,-500.0,0.00010958,2]
[352632509,1739209844162,-500.0,0.00010958,2]
[352632511,1739209844171,-6058.21,0.00010958,2]
[352632513,1739209844181,-1079.98,0.00010958,2]
[352632515,1739209844190,-836.07,0.00010958,2]
[352632517,1739209844199,-2307.96,0.00010958,2]
[352632519,1739209844208,-500.0,0.00010958,2]
[352632521,1739209844217,-164.03712,0.00010958,2]
[352632523,1739209844226,-500.0,0.00010958,2]
[352632525,1739209844237,-500.0,0.00010958,2]
[352632527,1739209844246,-500.0,0.00010958,2]
[352632529,1739209844255,-500.0,0.00010958,2]
[352632531,1739209844264,-500.0,0.00010958,2]
[352632532,1739209844274,-944.51,0.00010958,2]
[352632534,1739209844284,-1291.66,0.00010958,2]
[352632536,1739209844294,-500.0,0.00010958,2]
[352632538,1739209844303,-500.0,0.00010958,2]
[352632540,1739209844315,-558.74,0.00010958,2]
[352632542,1739209844325,-1951.14,0.00010958,2]
[352632544,1739209844335,-500.0,0.00010958,2]
[352632547,1739209844345,-500.0,0.00010958,2]
[352632549,1739209844355,-640.38,0.00010958,2]
[352632551,1739209844365,-2240.17,0.00010958,2]
[352632553,1739209844375,-557.23,0.00010958,2]
[352632555,1739209844385,-500.0,0.00010958,2]
[352632557,1739209844394,-500.0,0.00010958,2]
[352632559,1739209844404,-500.0,0.00010958,2]
[352632561,1739209844413,-500.0,0.00010958,2]
[352632562,1739209844422,-500.0,0.00010958,2]
[352632564,1739209844431,-500.0,0.00010958,2]
[352632566,1739209844440,-1088.39,0.00010958,2]
[352632568,1739209844450,-690.15,0.00010958,2]
[352632570,1739209844459,-500.0,0.00010958,2]
[352632572,1739209844468,-1813.16,0.00010958,2]
[352632574,1739209844477,-912.37,0.00010958,2]
[352632576,1739209844486,-500.0,0.00010958,2]
[352632578,1739209844496,-500.0,0.00010958,2]
[352632580,1739209844505,-725.54,0.00010958,2]
[352632582,1739209844515,-500.0,0.00010958,2]
[352632584,1739209844525,-500.0,0.00010958,2]
[352632586,1739209844535,-1047.8,0.00010958,2]
[352632588,1739209844544,-604.0,0.00010958,2]
[352632590,1739209844553,-500.0,0.00010958,2]
[352632592,1739209844562,-602.0,0.00010958,2]
[352632594,1739209844571,-500.0,0.00010958,2]
[352632596,1739209844584,-1030.4,0.00010958,2]
[352632598,1739209844594,-1055.12,0.00010958,2]
[352632600,1739209844603,-592.81,0.00010958,2]
[352632602,1739209844613,-500.0,0.00010958,2]
[352632604,1739209844623,-500.0,0.00010958,2]
[352632606,1739209844632,-500.0,0.00010958,2]
[352632608,1739209844642,-500.0,0.00010958,2]
[352632610,1739209844651,-500.0,0.00010958,2]
[352632612,1739209844661,-830.56,0.00010958,2]
[352632614,1739209844670,-500.0,0.00010958,2]
[352632616,1739209844679,-500.0,0.00010958,2]
[352632618,1739209844689,-2524.03,0.00010958,2]
[352632620,1739209844698,-792.96,0.00010958,2]
[352632622,1739209844708,-1228.68,0.00010958,2]
[352632624,1739209844717,-630.93,0.00010958,2]
[352632626,1739209844727,-502.37,0.00010958,2]
[352632628,1739209844736,-164.56502396,0.00010958,2]
[352632630,1739209844745,-500.0,0.00010959,2]
[352632632,1739209844755,-2000.0,0.00010959,2]
[352632634,1739209844764,-500.0,0.00010959,2]
[352632636,1739209844774,-200.0,0.00010959,2]
[352632638,1739209844783,-502.25288465,0.00010973,2]
[352632640,1739209844792,-406.69797652,0.00010973,2]
[352632642,1739209844802,-500.0,0.00010973,2]
[352632644,1739209844811,-500.0,0.00010985,2]
[352632646,1739209844820,-1204.43073554,0.0001099,2]
[352632658,1739209844921,-1110.84,0.00010997,2]
[352632660,1739209844931,-622.86,0.00010997,2]
[352632662,1739209844940,-1284.09,0.00010997,2]
[352632664,1739209844949,-1157.94,0.00010997,2]
[352632666,1739209844959,-1172.73,0.00010997,2]
[352632668,1739209844969,-1154.51,0.00010997,2]
[352632670,1739209844979,-1282.32,0.00010997,2]
[352632672,1739209844988,-2118.9,0.00010997,2]
[352632674,1739209844998,-6414.21,0.00010997,2]
[352632676,1739209845008,-1135.04,0.00010997,2]
[352632678,1739209845018,-866.04,0.00010997,2]
[352632680,1739209845027,-869.15,0.00010997,2]
[352632682,1739209845037,-1869.03,0.00010997,2]
[352632684,1739209845047,-500.0,0.00010997,2]
[352632686,1739209845056,-679.66,0.00010997,2]